fUST/lending_fUST_20260601
["ID","MTS","AMOUNT","RATE_DAILY","PERIOD"]
[423649212,1780273849000,-200.0,0.0002092,3]
[423649215,1780273849000,-500.0,0.0002092,2]
[423649203,1780273849000,-151.0,0.00020805,2]
[423649202,1780273849000,-173.0,0.00020805,120]
[423649211,1780273849000,-200.0,0.0002092,3]
[423649210,1780273849000,-500.0,0.0002092,2]
[423649206,1780273849000,-500.0,0.0002092,2]
[423649207,1780273849000,-200.0,0.0002092,3]
[423649208,1780273849000,-200.0,0.0002092,3]
[423649209,1780273849000,-200.0,0.0002092,3]
[423649205,1780273849000,-300.0,0.00020805,3]
[423649213,1780273849000,-200.0,0.0002092,3]
[423649218,1780273849000,-500.0,0.0002092,2]
[423649216,1780273849000,-500.0,0.0002092,2]
[423649201,1780273849000,-173.0,0.00020402,30]
[423649240,1780274604000,305.579999,2.01e-05,2]
[423649242,1780274693000,319.34309719,0.000197,120]
[423649241,1780274693000,290.37176699,0.000197,120]
[423649244,1780274694000,326.84843016,0.000197,120]
[423649243,1780274694000,323.11415956,0.000197,120]
[423649251,1780274952000,-1200.0,9.999e-05,2]
[423649252,1780274952000,-300.0,9.999e-05,2]
[423649250,1780274952000,-5000.0,9.605e-05,2]
[423649253,1780274952000,-3414.56183366,0.0001,2]
[423649533,1780275040000,-500.0,0.00013697,2]
[423649539,1780275040000,-500.0,0.00013697,2]
[423649543,1780275040000,-500.0,0.00013698,2]
[423649546,1780275040000,-500.0,0.00013698,2]
[423649545,1780275040000,-500.0,0.00013698,2]
[423649537,1780275040000,-500.0,0.00013697,2]
[423649547,1780275040000,-500.0,0.00013698,2]
[423649544,1780275040000,-500.0,0.00013698,2]
[423649535,1780275040000,-454.78970282,0.00013697,2]
[423649534,1780275040000,-500.0,0.00013697,2]
[423649536,1780275040000,-500.0,0.00013697,2]
[423649526,1780275040000,-500.0,0.00013697,2]
[423649528,1780275040000,-500.0,0.00013697,2]
[423649524,1780275040000,-500.0,0.00013697,2]
[423649523,1780275040000,-345.0,0.00012078,2]
[423649527,1780275040000,-500.0,0.00013697,2]
[423649529,1780275040000,-500.0,0.00013697,2]
[423649522,1780275040000,-226.0,0.00010991,2]
[423649521,1780275040000,-300.0,0.00010991,2]
[423649531,1780275040000,-500.0,0.00013697,2]
[423649519,1780275040000,-107.9759205,0.0001,2]
[423649532,1780275040000,-557.98115422,0.00013697,2]
[423649530,1780275040000,-500.0,0.00013697,2]
[423649520,1780275040000,-349.08349144,0.0001,2]
[423649518,1780275040000,-5000.0,9.9e-05,2]
[423649541,1780275040000,-500.0,0.00013697,2]
[423649542,1780275040000,-500.0,0.00013697,2]
[423649538,1780275040000,-500.0,0.00013697,2]
[423649559,1780275040000,-500.0,0.00013698,2]
[423649575,1780275040000,-374.63,0.00019975,2]
[423649576,1780275040000,-500.0,0.00019975,2]
[423649571,1780275040000,-200.0,0.00016438,2]
[423649573,1780275040000,-2056.37176913,0.00019779,2]
[423649574,1780275040000,-500.0,0.00019975,2]
[423649572,1780275040000,-238.441,0.00017126,2]
[423649569,1780275040000,-160.2015492,0.00015,3]
[423649570,1780275040000,-168.458092,0.00016108,2]
[423649563,1780275040000,-500.0,0.00013698,2]
[423649549,1780275040000,-500.0,0.00013698,2]
[423649567,1780275040000,-500.0,0.00013972,2]
[423649564,1780275040000,-500.0,0.00013698,2]
[423649565,1780275040000,-297.64,0.00013698,2]
[423649566,1780275040000,-500.0,0.00013972,2]
[423649568,1780275040000,-1000.0,0.00013993,2]
[423649561,1780275040000,-500.0,0.00013698,2]
[423649548,1780275040000,-500.0,0.00013698,2]
[423649562,1780275040000,-500.0,0.00013698,2]
[423649557,1780275040000,-500.0,0.00013698,2]
[423649556,1780275040000,-200.18397054,0.00013698,2]
[423649555,1780275040000,-500.0,0.00013698,2]
[423649551,1780275040000,-500.0,0.00013698,2]
[423649550,1780275040000,-500.0,0.00013698,2]
[423649553,1780275040000,-500.0,0.00013698,2]
[423649558,1780275040000,-484.66,0.00013698,2]
[423649554,1780275040000,-500.0,0.00013698,2]
[423649560,1780275040000,-500.0,0.00013698,2]
[423649552,1780275040000,-649.9,0.00013698,2]
[423649620,1780275041000,-367.4485798,0.00020155,2]
[423649619,1780275041000,-5225.220232,0.00020155,2]
[423649616,1780275041000,-154.0,0.0002,2]
[423649615,1780275041000,-500.0,0.00019979,2]
[423649614,1780275041000,-500.0,0.00019979,2]
[423649611,1780275041000,-500.0,0.00019979,2]
[423649612,1780275041000,-500.0,0.00019979,2]
[423649610,1780275041000,-500.0,0.00019979,2]
[423649609,1780275041000,-500.0,0.00019979,2]
[423649608,1780275041000,-500.0,0.00019979,2]
[423649621,1780275041000,-600.0,0.00020376,2]
[423649613,1780275041000,-500.0,0.00019979,2]
[423649630,1780275041000,-154.0,0.00021443,30]
[423649636,1780275041000,-720.0,0.00022413,10]
[423649631,1780275041000,-154.0,0.00021885,120]
[423649627,1780275041000,-154.0,0.00020885,120]
[423649622,1780275041000,-154.0,0.00020443,30]
[423649629,1780275041000,-179.91004498,0.00021322,2]
[423649626,1780275041000,-2202.0,0.00020617,2]
[423649624,1780275041000,-444.0,0.00020617,2]
[423649625,1780275041000,-236.726,0.00020617,2]
[423649623,1780275041000,-1178.335,0.00020617,2]
[423649628,1780275041000,-154.0,0.00021,2]
[423649634,1780275041000,-259.28,0.000224,2]
[423649644,1780275041000,-456.9255797,0.00023056,2]
[423649645,1780275041000,-500.0,0.00023177,2]
[423649606,1780275041000,-500.0,0.00019979,2]
[423649632,1780275041000,-154.0,0.00022,2]
[423649618,1780275041000,-2749.9452985,0.00020155,2]
[423649582,1780275041000,-500.0,0.00019975,2]
[423649617,1780275041000,-300.0,0.0002,4]
[423649583,1780275041000,-500.0,0.00019975,2]
[423649584,1780275041000,-500.0,0.00019975,2]
[423649579,1780275041000,-500.0,0.00019975,2]
[423649581,1780275041000,-336.49,0.00019975,2]
[423649578,1780275041000,-203.52,0.00019975,2]
[423649577,1780275041000,-500.0,0.00019975,2]
[423649586,1780275041000,-476.40695194,0.00019975,2]
[423649585,1780275041000,-500.0,0.00019975,2]
[423649587,1780275041000,-23.59304806,0.00019975,2]
[423649591,1780275041000,-500.0,0.00019978,2]
[423649588,1780275041000,-500.0,0.00019975,2]
[423649590,1780275041000,-500.0,0.00019975,2]
[423649589,1780275041000,-2292.9847,0.00019975,2]
[423649592,1780275041000,-500.0,0.00019978,2]
[423649593,1780275041000,-500.0,0.00019978,2]
[423649603,1780275041000,-358.34391089,0.00019979,2]
[423649594,1780275041000,-500.0,0.00019978,2]
[423649604,1780275041000,-500.0,0.00019979,2]
[423649595,1780275041000,-500.0,0.00019978,2]
[423649605,1780275041000,-500.0,0.00019979,2]
[423649596,1780275041000,-500.0,0.00019978,2]
[423649598,1780275041000,-500.0,0.00019978,2]
[423649597,1780275041000,-500.0,0.00019978,2]
[423649602,1780275041000,-180.13874564,0.00019978,2]
[423649599,1780275041000,-500.0,0.00019978,2]
[423649600,1780275041000,-500.0,0.00019978,2]
[423649601,1780275041000,-500.0,0.00019978,2]
[423649607,1780275041000,-500.0,0.00019979,2]
[423649633,1780275041000,-191.0,0.0002206,2]
[423649697,1780275041000,-500.0,0.00024658,2]
[423649640,1780275041000,-326.18774,0.00023,2]
[423649673,1780275041000,-500.0,0.0002427,120]
[423649676,1780275041000,-1899.05705976,0.00024284,2]
[423649675,1780275041000,-500.0,0.0002427,120]
[423649680,1780275041000,-154.0,0.00024443,30]
[423649678,1780275041000,-219.9913394,0.00024384,2]
[423649677,1780275041000,-151.0,0.00024384,2]
[423649674,1780275041000,-536.11,0.0002427,120]
[423649671,1780275041000,-500.0,0.0002427,120]
[423649672,1780275041000,-500.0,0.0002427,120]
[423649681,1780275041000,-600.0,0.00024512,7]
[423649679,1780275041000,-456.830407,0.000244,2]
[423649693,1780275041000,-500.0,0.00024658,2]
[423649682,1780275041000,-1884.75376555,0.00024512,2]
[423649684,1780275041000,-456.9255797,0.000246,2]
[423649685,1780275041000,-519.43965667,0.0002465,2]
[423649686,1780275041000,-158526.58654814,0.0002465,2]
[423649688,1780275041000,-864.0,0.00024654,10]
[423649691,1780275041000,-500.0,0.00024658,2]
[423649689,1780275041000,-200.0,0.00024658,2]
[423649692,1780275041000,-500.0,0.00024658,2]
[423649687,1780275041000,-300.0,0.0002465,2]
[423649690,1780275041000,-380.0,0.00024658,2]
[423649695,1780275041000,-500.0,0.00024658,2]
[423649694,1780275041000,-500.0,0.00024658,2]
[423649696,1780275041000,-500.0,0.00024658,2]
[423649698,1780275041000,-500.0,0.00024658,2]
[423649635,1780275041000,-202.09284988,0.000224,2]
[423649669,1780275041000,-500.0,0.0002427,120]
[423649667,1780275041000,-500.0,0.0002427,120]
[423649683,1780275041000,-326.18774,0.000246,2]
[423649665,1780275041000,-500.0,0.0002427,120]
[423649639,1780275041000,-166.0,0.00023,2]
[423649666,1780275041000,-500.0,0.0002427,120]
[423649637,1780275041000,-154.0,0.00022443,30]
[423649642,1780275041000,-456.9255797,0.00023056,2]
[423649643,1780275041000,-326.18774,0.00023056,2]
[423649638,1780275041000,-154.0,0.00022885,120]
[423649646,1780275041000,-456.9255797,0.00023342,2]
[423649650,1780275041000,-154.0,0.00023443,30]
[423649647,1780275041000,-456.9255799,0.00023342,2]
[423649651,1780275041000,-326.18774,0.00023478,2]
[423649649,1780275041000,-326.18774,0.00023378,2]
[423649648,1780275041000,-456.9255797,0.00023342,2]
[423649652,1780275041000,-456.9255797,0.00023556,2]
[423649657,1780275041000,-10352.54245822,0.00024006,2]
[423649641,1780275041000,-551.6180274,0.00023,2]
[423649668,1780275041000,-500.0,0.0002427,120]
[423649655,1780275041000,-154.0,0.00023885,120]
[423649662,1780275041000,-500.0,0.0002427,120]
[423649661,1780275041000,-500.0,0.0002427,120]
[423649663,1780275041000,-500.0,0.0002427,120]
[423649659,1780275041000,-500.0,0.0002427,120]
[423649664,1780275041000,-500.0,0.0002427,120]
[423649660,1780275041000,-500.0,0.0002427,120]
[423649654,1780275041000,-185.0,0.00023617,2]
[423649658,1780275041000,-456.9255797,0.000242,2]
[423649653,1780275041000,-444.0,0.00023617,2]
[423649656,1780275041000,-1755.60517372,0.00024,2]
[423649670,1780275041000,-500.0,0.0002427,120]
[423649737,1780275042000,-151.0,0.00028493,2]
[423649738,1780275042000,-200.0,0.00028718,2]
[423649736,1780275042000,-151.0,0.00028493,2]
[423649740,1780275042000,-203.48202,0.00029,120]
[423649734,1780275042000,-151.0,0.000282,120]
[423649727,1780275042000,-600.0,0.00027148,16]
[423649747,1780275042000,-151.0,0.000296,120]
[423649746,1780275042000,-200.0,0.00029553,2]
[423649735,1780275042000,-200.0,0.000283,2]
[423649739,1780275042000,-151.0,0.000289,120]
[423649728,1780275042000,-614.78447569,0.00027148,16]
[423649730,1780275042000,-200.0,0.00027464,2]
[423649745,1780275042000,-151.0,0.00029315,2]
[423649742,1780275042000,-151.1958852,0.00029315,2]
[423649752,1780275042000,-456.9255797,0.00029808,2]
[423649741,1780275042000,-200.0,0.00029135,2]
[423649744,1780275042000,-151.0,0.00029315,2]
[423649748,1780275042000,-444.0,0.00029617,2]
[423649755,1780275042000,-326.18774,0.00029808,2]
[423649754,1780275042000,-326.18774,0.00029808,2]
[423649750,1780275042000,-326.18774,0.00029808,2]
[423649757,1780275042000,-1000.0,0.00029832,30]
[423649756,1780275042000,-326.18774,0.00029808,2]
[423649753,1780275042000,-326.18774,0.00029808,2]
[423649749,1780275042000,-185.0,0.00029617,2]
[423649751,1780275042000,-456.9255797,0.00029808,2]
[423649760,1780275042000,-160.0,0.0003,14]
[423649761,1780275042000,-421.07849762,0.0003,5]
[423649743,1780275042000,-151.0,0.00029315,2]
[423649726,1780275042000,-1000.0,0.0002712,30]
[423649699,1780275042000,-500.0,0.00024658,2]
[423649729,1780275042000,-155.47832828,0.000274,2]
[423649759,1780275042000,-200.0,0.00029971,2]
[423649706,1780275042000,-154.0,0.00024885,120]
[423649705,1780275042000,-278.52186043,0.00024658,2]
[423649700,1780275042000,-500.0,0.00024658,2]
[423649702,1780275042000,-151.5,0.00024658,2]
[423649701,1780275042000,-466.58576629,0.00024658,2]
[423649704,1780275042000,-151.5,0.00024658,2]
[423649703,1780275042000,-151.5,0.00024658,2]
[423649708,1780275042000,-212.68,0.000249,2]
[423649707,1780275042000,-212.68,0.000249,2]
[423649718,1780275042000,-600.0,0.00026568,13]
[423649719,1780275042000,-444.0,0.00026617,2]
[423649717,1780275042000,-330.6187082,0.00026489,120]
[423649710,1780275042000,-154.0,0.00025443,30]
[423649713,1780275042000,-151.0,0.00025671,2]
[423649712,1780275042000,-151.0,0.000255,120]
[423649714,1780275042000,-154.0,0.00025885,120]
[423649711,1780275042000,-841687.7785,0.00025444,2]
[423649716,1780275042000,-154.0,0.00026443,30]
[423649709,1780275042000,-5000.0,0.00025127,5]
[423649715,1780275042000,-151.0,0.000262,120]
[423649721,1780275042000,-2749.9452985,0.00026761,2]
[423649731,1780275042000,-151.0,0.000276,120]
[423649720,1780275042000,-185.0,0.00026617,2]
[423649722,1780275042000,-456.9255797,0.00026822,2]
[423649732,1780275042000,-326.18774,0.00027671,2]
[423649733,1780275042000,-200.0,0.00027882,2]
[423649724,1780275042000,-151.0,0.000269,120]
[423649725,1780275042000,-200.0,0.00027047,2]
[423649723,1780275042000,-154.0,0.00026885,120]
[423649763,1780275042000,-456.830407,0.00030137,2]
[423649758,1780275042000,-244.0,0.00029832,30]
[423649762,1780275042000,-61930.2592619,0.00030137,120]
[423649807,1780275042000,-204.3260536,0.00030959,2]
[423649799,1780275042000,-456.9255797,0.0003063,2]
[423649798,1780275042000,-456.9255797,0.0003063,2]
[423649800,1780275042000,-456.9255797,0.0003063,2]
[423649805,1780275042000,-246.0873175,0.00030959,2]
[423649801,1780275042000,-456.9255797,0.0003063,2]
[423649802,1780275042000,-581.304173,0.0003063,2]
[423649803,1780275042000,-200.0,0.00030806,2]
[423649806,1780275042000,-456.9255797,0.00030959,2]
[423649811,1780275042000,-326.18774,0.00030959,2]
[423649804,1780275042000,-326.18774,0.00030959,2]
[423649814,1780275042000,-326.18774,0.00030959,2]
[423649816,1780275042000,-326.18774,0.00030959,2]
[423649817,1780275042000,-327.321082,0.00030959,2]
[423649824,1780275042000,-326.18774,0.00030959,2]
[423649825,1780275042000,-309.0026594,0.00030959,2]
[423649818,1780275042000,-326.18774,0.00030959,2]
[423649820,1780275042000,-326.18774,0.00030959,2]
[423649822,1780275042000,-326.18774,0.00030959,2]
[423649813,1780275042000,-456.9255797,0.00030959,2]
[423649815,1780275042000,-456.9255797,0.00030959,2]
[423649821,1780275042000,-326.18774,0.00030959,2]
[423649819,1780275042000,-326.18774,0.00030959,2]
[423649823,1780275042000,-326.18774,0.00030959,2]
[423649828,1780275042000,-326.18774,0.00030959,2]
[423649826,1780275042000,-326.18774,0.00030959,2]
[423649829,1780275042000,-456.9255797,0.00030959,2]
[423649827,1780275042000,-456.9255797,0.00030959,2]
[423649768,1780275042000,-151.0,0.00030137,2]
[423649796,1780275042000,-456.9255797,0.0003063,2]
[423649797,1780275042000,-456.9255797,0.0003063,2]
[423649809,1780275042000,-326.18774,0.00030959,2]
[423649788,1780275042000,-767.37531181,0.0003014,120]
[423649766,1780275042000,-151.0,0.00030137,2]
[423649764,1780275042000,-326.18774,0.00030137,2]
[423649769,1780275042000,-151.0,0.00030137,2]
[423649765,1780275042000,-151.0,0.00030137,2]
[423649770,1780275042000,-217.251412,0.00030137,2]
[423649767,1780275042000,-151.0,0.00030137,2]
[423649772,1780275042000,-456.9255797,0.00030137,2]
[423649782,1780275042000,-326.18774,0.00030137,2]
[423649774,1780275042000,-151.0,0.00030137,2]
[423649773,1780275042000,-151.0,0.00030137,2]
[423649775,1780275042000,-151.0,0.00030137,2]
[423649776,1780275042000,-456.9255797,0.00030137,2]
[423649777,1780275042000,-151.0,0.00030137,2]
[423649779,1780275042000,-151.0,0.00030137,2]
[423649771,1780275042000,-151.0,0.00030137,2]
[423649781,1780275042000,-151.0,0.00030137,2]
[423649778,1780275042000,-151.0,0.00030137,2]
[423649792,1780275042000,-200.0,0.00030388,2]
[423649795,1780275042000,-456.9255797,0.0003063,2]
[423649789,1780275042000,-151.0,0.000303,120]
[423649793,1780275042000,-326.18774,0.0003063,2]
[423649791,1780275042000,-456.9255797,0.00030301,2]
[423649787,1780275042000,-456.9255797,0.00030137,2]
[423649790,1780275042000,-456.9255797,0.00030301,2]
[423649794,1780275042000,-456.9255797,0.0003063,2]
[423649784,1780275042000,-151.0,0.00030137,2]
[423649783,1780275042000,-326.18774,0.00030137,2]
[423649785,1780275042000,-326.18774,0.00030137,2]
[423649780,1780275042000,-151.0,0.00030137,2]
[423649786,1780275042000,-151.0,0.00030137,2]
[423649850,1780275043000,-180.22495209,0.00031982,8]
[423649841,1780275043000,-151.0,0.000317,120]
[423649839,1780275043000,-456.9255797,0.00031452,2]
[423649840,1780275043000,-161.0,0.00031644,14]
[423649833,1780275043000,-456.9255797,0.00030959,2]
[423649836,1780275043000,-767.37531181,0.00031,120]
[423649832,1780275043000,-460.1672742,0.00030959,2]
[423649835,1780275043000,-160.0,0.0003097,7]
[423649830,1780275043000,-456.9255797,0.00030959,2]
[423649834,1780275043000,-326.18774,0.00030959,2]
[423649831,1780275043000,-456.9255797,0.00030959,2]
[423649837,1780275043000,-151.0,0.00031,120]
[423649838,1780275043000,-600.0,0.00031156,52]
[423649843,1780275043000,-456.9255797,0.00031781,2]
[423649847,1780275043000,-456.9255797,0.00031781,2]
[423649844,1780275043000,-456.9255797,0.00031781,2]
[423649845,1780275043000,-456.9255797,0.00031781,2]
[423649848,1780275043000,-326.18774,0.00031781,2]
[423649846,1780275043000,-326.18774,0.00031781,2]
[423649856,1780275043000,-185.0,0.00032617,2]
[423649849,1780275043000,-326.18774,0.00031781,2]
[423649852,1780275043000,-151.0,0.0003212,30]
[423649851,1780275043000,-273.556,0.00032,2]
[423649853,1780275043000,-151.0,0.000324,120]
[423649854,1780275043000,-456.9255797,0.00032603,2]
[423649855,1780275043000,-437.384,0.00032617,2]
[423649857,1780275043000,-163244.21825242,0.00032798,120]
[423649858,1780275043000,-97215.08942444,0.00032798,120]
[423649842,1780275043000,-456.9255797,0.00031781,2]
[423649875,1780275044000,-3422.40111646,0.00032798,120]
[423649881,1780275046000,-3859.57031617,0.00032798,120]
[423649888,1780275210000,-6587.01348221,0.000105,2]
[423649889,1780275210000,-90628.07594223,0.00019875,2]
[423649890,1780275220000,-97215.08942444,0.00019875,2]
[423649891,1780275231000,-97215.08942444,0.00019875,2]
[423649892,1780275241000,-97215.08942444,0.00019875,2]
[423649894,1780276025000,-182.22352127,0.00018703,2]
[423649895,1780276047000,-4817.77647873,0.00018703,2]
[423649898,1780276047000,-214.132,0.00019774,2]
[423649897,1780276047000,-1000.0,0.00019668,2]
[423649896,1780276047000,-5000.0,0.00018892,2]
[423649899,1780276047000,-500.0,0.00019774,2]
[423649902,1780276047000,-11629.70559171,0.00019775,2]
[423649901,1780276047000,-494.97663365,0.00019774,2]
[423649900,1780276047000,-450.88679491,0.00019774,2]
[423649937,1780276233000,-638.35884141,0.00019577,2]
[423649936,1780276233000,-3465.85544935,0.00019577,2]
[423649945,1780276239000,-174.59707625,0.00019675,2]
[423649944,1780276239000,-895.78570924,0.00019577,2]
[423649946,1780276239000,-973.63857543,0.00019775,2]
[423649947,1780276239000,-1754.75116711,0.00019775,2]
[423649949,1780276239000,-1112.20895714,0.00019775,2]
[423649948,1780276239000,-1317.06100475,0.00019775,2]
[423649970,1780276244000,-18785.64331,0.00019675,2]
[423649965,1780276244000,-5000.0,0.00019577,2]
[423649966,1780276244000,-10218.1178605,0.00019675,2]
[423649981,1780276249000,-79455.35586992,0.00019675,2]
[423649983,1780276249000,-16642.59267489,0.000198,2]
[423649982,1780276249000,-23228.11584519,0.00019775,2]
[423649984,1780276249000,-3624.73146912,0.000198,2]
[423649985,1780276249000,-1772.45325586,0.00019828,2]
[423649986,1780276249000,-400.0,0.00020433,30]
[423649988,1780276249000,-460.237977,0.000209,2]
[423649987,1780276249000,-219.76016097,0.00020433,30]
[423650001,1780276249000,-200.0,0.00029551,2]
[423649990,1780276249000,-155.0,0.00021918,6]
[423649989,1780276249000,-150.0,0.00021,2]
[423649991,1780276249000,-368.190382,0.000239,2]
[423650009,1780276249000,-10275.70217237,0.00030806,7]
[423649993,1780276249000,-5441.0004562,0.00025147,2]
[423650005,1780276249000,-200.0,0.00029969,2]
[423650003,1780276249000,-174.59707622,0.00029788,2]
[423649994,1780276249000,-200.0,0.00027458,2]
[423650007,1780276249000,-200.0,0.00030388,2]
[423649999,1780276249000,-200.0,0.00029132,2]
[423649995,1780276249000,-200.0,0.00027876,2]
[423649997,1780276249000,-200.0,0.00028714,2]
[423649992,1780276249000,-174.59707622,0.00024731,2]
[423649996,1780276249000,-200.0,0.00028295,2]
[423650023,1780276250000,-463.67,0.00032798,120]
[423650022,1780276250000,-821.48361985,0.00032798,120]
[423650019,1780276250000,-1457.12499115,0.00030806,7]
[423650020,1780276250000,-200.0,0.00030806,2]
[423650021,1780276250000,-200.0,0.00031225,2]
[423650018,1780276250000,-22.11283648,0.00030806,7]
[423650027,1780276904000,-658.47718672,0.00015476,2]
[423650028,1780276958000,-924.33019932,0.00015632,2]
[423650029,1780277011000,-973.63857543,0.0001579,2]
[423650030,1780277022000,-973.63857543,0.0001579,2]
[423650036,1780277338000,-1754.75116711,0.0001579,2]
[423650038,1780277349000,-1754.75116711,0.0001579,2]
[423650039,1780277360000,-1317.06100475,0.0001579,2]
[423650092,1780277431000,-3142.00522956,0.0001579,2]
[423650090,1780277431000,-368.67947311,0.0001579,2]
[423650110,1780277438000,-340.78685045,0.0001579,2]
[423650111,1780277438000,-200.0,0.00016438,2]
[423650109,1780277438000,-1148.52844688,0.0001579,2]
[423650112,1780277438000,-432.85172498,0.00025444,2]
[423650113,1780277438000,-537.30987502,0.00025444,2]
[423650114,1780277438000,-1618.46580151,0.00026,30]
[423650119,1780277438000,-200.0,0.00028724,2]
[423650118,1780277438000,-200.0,0.00028306,2]
[423650117,1780277438000,-300.0,0.0002789,2]
[423650115,1780277438000,-200.0,0.00027468,2]
[423650116,1780277438000,-200.0,0.00027887,2]
[423650121,1780277438000,-432.43357481,0.0002908,2]
[423650129,1780277438000,-300.0,0.00029662,30]
[423650120,1780277438000,-288.56642519,0.0002908,2]
[423650128,1780277438000,-300.0,0.00029582,2]
[423650127,1780277438000,-300.0,0.00029582,2]
[423650130,1780277438000,-114.8271214,0.00029981,2]
[423650125,1780277438000,-1000.0,0.00029209,30]
[423650124,1780277438000,-82.17008692,0.00029143,2]
[423650123,1780277438000,-117.82991308,0.00029143,2]
[423650122,1780277438000,-2115.5343687,0.00029081,2]
[423650126,1780277438000,-200.0,0.00029562,2]
[423650137,1780277440000,-379.33809075,0.00031222,2]
[423650135,1780277440000,-249.616,0.00030606,120]
[423650136,1780277440000,-500.0,0.00031222,2]
[423650134,1780277440000,-160.0,0.00030569,3]
[423650169,1780277446000,-500.0,0.00031222,2]
[423650168,1780277446000,-500.0,0.00031222,2]
[423650167,1780277446000,-500.0,0.00031222,2]
[423650166,1780277446000,-500.0,0.00031222,2]
[423650163,1780277446000,-199.63705774,0.00031222,2]
[423650164,1780277446000,-500.0,0.00031222,2]
[423650165,1780277446000,-500.0,0.00031222,2]
[423650170,1780277446000,-281.20120767,0.00031225,7]
[423650178,1780277446000,-35042.62921654,0.00032798,120]
[423650172,1780277446000,-1439.02,0.00031237,7]
[423650175,1780277446000,-431.55,0.00031994,8]
[423650171,1780277446000,-4596.26879233,0.00031225,7]
[423650174,1780277446000,-300.0,0.00031994,8]
[423650176,1780277446000,-600.0,0.00032019,30]
[423650179,1780277446000,-31321.84848189,0.00032798,120]
[423650180,1780277446000,-4987.0,0.00032798,120]
[423650177,1780277446000,-171.306,0.00032019,31]
[423650173,1780277446000,-152.84,0.00031477,5]
[423650200,1780277763000,159.15968737,0.00020936,120]
[423650201,1780277777000,151.0,0.0002,120]
[423650334,1780278632000,-151.0,0.000285,120]
[423650311,1780278632000,-153.64,0.000205,2]
[423650301,1780278632000,-831.0,0.000177,2]
[423650298,1780278632000,-300.0,0.00016766,2]
[423650299,1780278632000,-2159.53026325,0.00016766,2]
[423650336,1780278632000,-171.773,0.000294,22]
[423650283,1780278632000,-300.0,0.00016766,2]
[423650294,1780278632000,-300.0,0.00016766,2]
[423650281,1780278632000,-300.0,0.00016766,2]
[423650290,1780278632000,-300.0,0.00016766,2]
[423650292,1780278632000,-300.0,0.00016766,2]
[423650278,1780278632000,-300.0,0.00016766,2]
[423650279,1780278632000,-300.0,0.00016766,2]
[423650288,1780278632000,-300.0,0.00016766,2]
[423650276,1780278632000,-300.0,0.00016766,2]
[423650285,1780278632000,-300.0,0.00016766,2]
[423650287,1780278632000,-300.0,0.00016766,2]
[423650274,1780278632000,-300.0,0.00016766,2]
[423650272,1780278632000,-300.0,0.00016766,2]
[423650264,1780278632000,-1120.0,0.00016435,2]
[423650266,1780278632000,-300.0,0.00016436,2]
[423650262,1780278632000,-300.0,0.00016434,2]
[423650260,1780278632000,-300.0,0.00016434,2]
[423650270,1780278632000,-453.21946094,0.00016765,2]
[423650268,1780278632000,-200.0,0.00016438,2]
[423650258,1780278632000,-300.0,0.00016434,2]
[423650256,1780278632000,-1200.0,0.0001611,2]
[423650253,1780278632000,-4700.0,0.0001579,2]
[423650254,1780278632000,-5000.0,0.0001595,2]
[423650243,1780278632000,-300.0,0.0001579,2]